fUSD/lending_fUSD_20240210
["ID","MTS","AMOUNT","RATE_DAILY","PERIOD"]
[313709136,1707600676282,-500.0,0.00039178,30]
[313709137,1707600676291,-2698.96,0.00039178,30]
[313709138,1707600676300,-500.0,0.00039178,30]
[313709139,1707600676311,-500.0,0.00039178,30]
[313709140,1707600676321,-500.0,0.00039178,30]
[313709141,1707600676330,-773.31,0.00039178,30]
[313709142,1707600676340,-500.0,0.00039178,30]
[313709143,1707600676349,-1020.08,0.00039178,30]
[313709144,1707600676359,-500.0,0.00039178,30]
[313709145,1707600676368,-1468.67,0.00039178,30]
[313709146,1707600676376,-500.0,0.00039178,30]
[313709147,1707600676386,-500.0,0.00039178,30]
[313709148,1707600676395,-1648.08,0.00039178,30]
[313709149,1707600676404,-500.0,0.00039178,30]
[313709150,1707600676414,-500.0,0.00039178,30]
[313709151,1707600676423,-472.76354536,0.00039178,30]
[313709152,1707600676433,-500.0,0.00039178,30]
[313709153,1707600676442,-1006.27,0.00039178,30]
[313709154,1707600676452,-500.0,0.00039178,30]
[313709155,1707600676462,-537.16,0.00039178,30]
[313709156,1707600676472,-707.87,0.00039178,30]
[313709157,1707600676482,-500.0,0.00039178,30]
[313709158,1707600676491,-835.37,0.00039178,30]
[313709159,1707600676500,-500.0,0.00039178,30]
[313709160,1707600676509,-500.0,0.00039178,30]
[313709161,1707600676518,-585.55,0.00039178,30]
[313709162,1707600676527,-288.59340356,0.00039178,30]
[313709163,1707600676536,-500.0,0.00039178,30]
[313709164,1707600676546,-615.65,0.00039178,30]
[313709165,1707600676555,-500.0,0.00039178,30]
[313709166,1707600676565,-500.0,0.00039178,30]
[313709167,1707600676575,-710.1,0.00039178,30]
[313709168,1707600676584,-500.0,0.00039178,30]
[313709169,1707600676593,-500.0,0.00039178,30]
[313709170,1707600676602,-637.4,0.00039178,30]
[313709171,1707600676611,-500.0,0.00039178,30]
[313709172,1707600676620,-500.0,0.00039178,30]
[313709173,1707600676629,-500.0,0.00039178,30]
[313709174,1707600676638,-204.61,0.00039178,30]
[313709175,1707600676647,-563.81,0.00039178,30]
[313709176,1707600676656,-500.0,0.00039178,30]
[313709177,1707600676665,-632.23,0.00039178,30]
[313709178,1707600676674,-500.0,0.00039178,30]
[313709179,1707600676683,-1130.03,0.00039178,30]
[313709180,1707600676693,-2012.7,0.00039178,30]
[313709181,1707600676702,-500.0,0.00039178,30]
[313709182,1707600676712,-676.8,0.00039178,30]
[313709183,1707600676722,-500.0,0.00039178,30]
[313709184,1707600676731,-500.0,0.00039178,30]
[313709185,1707600676740,-1151.47,0.00039178,5]
[313709186,1707600676750,-500.0,0.00039178,30]
[313709187,1707600676759,-500.0,0.00039178,30]
[313709188,1707600676768,-1433.03,0.00039178,30]
[313709189,1707600676778,-500.0,0.00039178,30]
[313709190,1707600676786,-500.0,0.00039178,30]
[313709191,1707600676795,-500.0,0.00039178,30]
[313709192,1707600676805,-996.61,0.00039178,30]
[313709193,1707600676818,-500.0,0.00039178,30]
[313709194,1707600676827,-500.0,0.00039178,30]
[313709195,1707600676840,-500.0,0.00039178,30]
[313709196,1707600676848,-1675.21,0.00039178,30]
[313709197,1707600676858,-801.92575349,0.00039178,2]
[313709198,1707600676868,-500.0,0.00039178,30]
[313709199,1707600676878,-500.0,0.00039178,30]
[313709200,1707600676888,-500.0,0.00039178,30]
[313709201,1707600676897,-500.0,0.00039178,30]
[313709202,1707600676907,-607.37,0.00039178,2]
[313709203,1707600676916,-500.0,0.00039178,30]
[313709204,1707600676926,-891.28,0.00039178,30]
[313709205,1707600676935,-786.75,0.00039178,30]
[313709206,1707600676944,-500.0,0.00039178,30]
[313709207,1707600676953,-589.3387917,0.00039178,30]
[313709208,1707600676962,-1992.36,0.00039178,30]
[313709209,1707600676972,-981.14,0.00039178,30]
[313709210,1707600676983,-1948.74,0.00039178,30]
[313709211,1707600676993,-1000.0,0.00039178,120]
[313709212,1707600677002,-500.0,0.00039178,30]
[313709213,1707600677012,-1915.67,0.00039178,30]
[313709214,1707600677021,-500.0,0.00039178,30]
[313709215,1707600677030,-1571.66,0.00039178,30]
[313709216,1707600677039,-500.0,0.00039178,30]
[313709217,1707600677048,-500.0,0.00039178,30]
[313709218,1707600677059,-1107.45,0.00039178,30]
[313709219,1707600677069,-1093.86,0.00039178,30]
[313709220,1707600677078,-832.17,0.00039178,30]
[313709221,1707600677087,-548.12,0.00039178,30]
[313709222,1707600677096,-500.0,0.00039178,30]
[313709223,1707600677105,-670.83,0.00039178,30]
[313709224,1707600677114,-500.0,0.00039178,30]
[313709225,1707600677124,-2135.62,0.00039178,30]
[313709226,1707600677133,-576.13,0.00039178,30]
[313709227,1707600677142,-500.0,0.00039178,30]
[313709228,1707600677151,-508.53,0.00039178,30]
[313709229,1707600677160,-2075.8,0.00039178,30]
[313709230,1707600677169,-637.94,0.00039178,30]
[313709231,1707600677178,-500.0,0.00039178,30]
[313709232,1707600677187,-500.0,0.00039178,30]
[313709233,1707600677196,-500.0,0.00039178,30]
[313709234,1707600677206,-500.0,0.00039178,30]
[313709235,1707600677215,-500.0,0.00039178,30]
[313709236,1707600677224,-500.0,0.00039178,30]
[313709237,1707600677235,-1098.0,0.00039178,30]
[313709238,1707600677244,-1381.72,0.00039178,30]
[313709239,1707600677253,-500.0,0.00039178,30]
[313709240,1707600677264,-952.74,0.00039178,30]
[313709241,1707600677275,-500.0,0.00039178,30]
[313709242,1707600677284,-2884.06,0.00039178,30]
[313709243,1707600677293,-500.0,0.00039178,30]
[313709244,1707600677302,-746.11,0.00039178,30]
[313709245,1707600677313,-695.59,0.00039178,30]
[313709246,1707600677323,-857.11,0.00039178,30]
[313709247,1707600677332,-500.0,0.00039178,30]
[313709248,1707600677342,-500.0,0.00039178,30]
[313709249,1707600677351,-500.0,0.00039178,30]
[313709250,1707600677360,-500.0,0.00039178,30]
[313709251,1707600677369,-500.0,0.00039178,30]
[313709252,1707600677379,-2276.89,0.00039178,30]
[313709253,1707600677388,-775.52,0.00039178,30]
[313709254,1707600677397,-500.0,0.00039178,30]
[313709255,1707600677406,-1726.49,0.00039178,30]
[313709256,1707600677416,-500.0,0.00039178,30]
[313709257,1707600677425,-500.0,0.00039178,30]
[313709258,1707600677434,-2588.33,0.00039178,30]
[313709259,1707600677443,-500.0,0.00039178,30]
[313709260,1707600677452,-500.0,0.00039178,30]
[313709261,1707600677461,-992.81,0.00039178,30]
[313709262,1707600677471,-735.3,0.00039178,30]
[313709263,1707600677480,-1365.09,0.00039178,30]
[313709264,1707600677489,-722.45,0.00039178,30]
[313709265,1707600677498,-500.0,0.00039178,30]
[313709266,1707600677507,-558.14,0.00039178,30]
[313709267,1707600677516,-720.53,0.00039178,30]
[313709268,1707600677526,-500.0,0.00039178,30]
[313709269,1707600677535,-754.42,0.00039178,30]
[313709270,1707600677544,-500.0,0.00039178,30]
[313709271,1707600677553,-500.0,0.00039178,30]
[313709272,1707600677563,-785.13,0.00039178,30]
[313709273,1707600677572,-394.44,0.00039178,30]
[313709274,1707600677581,-500.0,0.00039178,30]
[313709275,1707600677590,-563.06,0.00039178,30]
[313709276,1707600677599,-500.0,0.00039178,30]
[313709277,1707600677608,-856.56,0.00039178,30]
[313709278,1707600677617,-1575.36,0.00039178,30]
[313709279,1707600677626,-500.0,0.00039178,30]
[313709280,1707600677635,-879.65,0.00039178,30]
[313709281,1707600677643,-1156.76,0.00039178,30]
[313709282,1707600677652,-1679.59,0.00039178,30]
[313709283,1707600677662,-657.74,0.00039178,30]
[313709284,1707600677671,-500.0,0.00039178,30]
[313709285,1707600677680,-3208.55,0.00039178,30]
[313709286,1707600677691,-500.0,0.00039178,30]
[313709287,1707600677700,-1168.11,0.00039178,30]
[313709288,1707600677708,-679.77,0.00039178,30]
[313709289,1707600677717,-926.77,0.00039178,30]
[313709290,1707600677726,-2025.45,0.00039178,30]
[313709291,1707600677736,-500.0,0.00039178,30]
[313709292,1707600677745,-500.0,0.00039178,30]
[313709293,1707600677754,-500.0,0.00039178,30]
[313709294,1707600677763,-500.0,0.00039178,30]
[313709295,1707600677772,-1043.64,0.00039178,30]
[313709296,1707600677782,-552.04,0.00039178,30]
[313709297,1707600677791,-500.0,0.00039178,30]
[313709298,1707600677800,-500.0,0.00039178,30]
[313709299,1707600677810,-1154.1,0.00039178,30]
[313709300,1707600677819,-500.0,0.00039178,30]
[313709301,1707600677828,-500.0,0.00039178,30]
[313709302,1707600677837,-989.31,0.00039178,30]
[313709303,1707600677846,-505.23,0.00039178,30]
[313709304,1707600677855,-2027.94,0.00039178,30]
[313709305,1707600677864,-603.46,0.00039178,30]
[313709306,1707600677873,-500.0,0.00039178,30]
[313709307,1707600677883,-761.12,0.00039178,30]
[313709308,1707600677892,-500.0,0.00039178,30]
[313709309,1707600677902,-2891.76,0.00039178,30]
[313709310,1707600677910,-541.0,0.00039178,30]
[313709311,1707600677919,-500.0,0.00039178,30]
[313709312,1707600677928,-500.0,0.00039178,30]
[313709313,1707600677937,-500.0,0.00039178,30]
[313709314,1707600677946,-500.0,0.00039178,30]
[313709315,1707600677955,-2770.93,0.00039178,30]
[313709316,1707600677964,-500.0,0.00039178,30]
[313709317,1707600677973,-500.0,0.00039178,30]
[313709318,1707600677983,-1243.29,0.00039178,30]
[313709319,1707600677992,-500.0,0.00039178,30]
[313709320,1707600678001,-579.05,0.00039178,30]
[313709321,1707600678010,-500.0,0.00039178,30]
[313709322,1707600678020,-1118.7,0.00039178,30]
[313709323,1707600678029,-500.0,0.00039178,30]
[313709324,1707600678038,-500.0,0.00039178,30]
[313709325,1707600678047,-614.47,0.00039178,30]
[313709326,1707600678056,-500.0,0.00039178,30]
[313709327,1707600678067,-500.0,0.00039178,30]
[313709328,1707600678076,-774.48,0.00039178,30]
[313709329,1707600678085,-833.42,0.00039178,30]
[313709330,1707600678094,-500.0,0.00039178,30]
[313709331,1707600678104,-500.0,0.00039178,30]
[313709332,1707600678113,-500.0,0.00039178,30]
[313709333,1707600678122,-1903.16,0.00039178,30]
[313709334,1707600678131,-712.27,0.00039178,30]
[313709335,1707600678140,-500.0,0.00039178,30]
[313709336,1707600678149,-776.19,0.00039178,30]
[313709337,1707600678159,-500.0,0.00039178,30]
[313709338,1707600678168,-500.0,0.00039178,30]
[313709339,1707600678177,-500.0,0.00039178,30]
[313709340,1707600678356,-793.0,0.00039178,30]
[313709341,1707600678365,-819.96,0.00039178,30]
[313709342,1707600678374,-500.0,0.00039178,30]
[313709343,1707600678384,-500.0,0.00039178,30]
[313709344,1707600678393,-835.83,0.00039178,30]
[313709345,1707600678402,-500.0,0.00039178,30]
[313709346,1707600678412,-500.0,0.00039178,30]
[313709347,1707600678421,-500.0,0.00039178,30]
[313709348,1707600678431,-500.0,0.00039178,30]
[313709349,1707600678441,-500.0,0.00039178,30]
[313709350,1707600678451,-521.81,0.00039178,30]
[313709351,1707600678460,-500.0,0.00039178,30]
[313709352,1707600678469,-1439.11,0.00039178,30]
[313709353,1707600678479,-666.09,0.00039178,30]
[313709354,1707600678488,-500.0,0.00039178,30]
[313709355,1707600678497,-1762.95,0.00039178,30]
[313709356,1707600678506,-500.0,0.00039178,30]
[313709357,1707600678516,-1507.87,0.00039178,30]
[313709358,1707600678526,-500.0,0.00039178,30]
[313709359,1707600678537,-1220.74,0.00039178,30]
[313709360,1707600678554,-500.0,0.00039178,30]
[313709361,1707600678568,-1071.55,0.00039178,30]
[313709362,1707600678577,-500.0,0.00039178,30]
[313709363,1707600678587,-1158.55,0.00039178,30]
[313709364,1707600678597,-500.0,0.00039178,30]
[313709365,1707600678606,-576.97,0.00039178,30]
[313709366,1707600678615,-500.0,0.00039178,5]
[313709367,1707600678624,-2544.48,0.00039178,30]
[313709368,1707600678634,-891.22,0.00039178,30]
[313709369,1707600678645,-526.32,0.00039178,30]
[313709370,1707600678654,-500.0,0.00039178,30]
[313709371,1707600678663,-1206.55,0.00039178,30]
[313709372,1707600678672,-777.02,0.00039178,30]
[313709373,1707600678681,-816.89,0.00039178,30]
[313709374,1707600678691,-500.0,0.00039178,30]
[313709375,1707600678701,-1195.77,0.00039178,30]
[313709376,1707600678711,-500.0,0.00039178,30]
[313709377,1707600678720,-500.0,0.00039178,30]
[313709378,1707600678730,-714.43,0.00039178,30]
[313709379,1707600678740,-500.0,0.00039178,30]
[313709380,1707600678749,-500.0,0.00039178,30]
[313709381,1707600678759,-2109.4,0.00039178,30]
[313709382,1707600678768,-518.1,0.00039178,30]
[313709383,1707600678778,-500.0,0.00039178,30]
[313709384,1707600678788,-150.0,0.000392,11]
[313709385,1707600678798,-3848.1452316,0.00039204,2]
[313709386,1707600678807,-1911.05449458,0.00039231,11]
[313709387,1707600678820,-300000.0,0.00039231,7]
[313709388,1707600678830,-153.7803214,0.00039231,7]
[313709389,1707600678840,-10000.0,0.0003924,23]
[313709390,1707600678850,-183.0,0.00039249,2]
[313709391,1707600678860,-1000.0,0.0003926,2]
[313709392,1707600678872,-200.0,0.000393,14]
[313709393,1707600678882,-151.0,0.0003932,2]
[313709394,1707600678892,-250.49088,0.0003932,2]
[313709395,1707600678902,-150.0,0.00039366,2]
[313709396,1707600678912,-150.0,0.00039366,2]
[313709397,1707600678921,-500.0,0.0003939,10]
[313709398,1707600678930,-441.0,0.00039392,2]
[313709399,1707600678940,-189.0,0.000394,7]
[313709400,1707600678952,-150.0,0.000394,11]
[313709401,1707600678963,-6265.55,0.0003941,7]
[313709402,1707600678972,-6265.55,0.0003941,7]
[313709403,1707600678982,-2543.8457496,0.00039413,2]
[313709404,1707600678991,-21189.7754655,0.00039413,2]
[313709405,1707600679003,-28081.1979287,0.00039413,2]
[313709406,1707600679013,-4416.2778823,0.00039425,2]
[313709407,1707600679022,-10000.0,0.0003944,24]
[313709408,1707600679031,-500.0,0.00039452,2]
[313709409,1707600679041,-500.0,0.00039452,30]
[313709410,1707600679050,-199.61297718,0.00039452,30]
[313709411,1707600679059,-769.96,0.00039452,2]
[313709412,1707600679069,-500.0,0.00039452,30]
[313709413,1707600679079,-500.0,0.00039452,30]
[313709414,1707600679088,-500.0,0.00039452,30]
[313709415,1707600679097,-500.0,0.00039452,30]
[313709416,1707600679107,-517.07,0.00039452,30]
[313709417,1707600679117,-613.18,0.00039452,30]
[313709418,1707600679126,-538.08,0.00039452,30]
[313709419,1707600679136,-500.0,0.00039452,30]
[313709420,1707600679145,-500.0,0.00039452,30]
[313709421,1707600679155,-500.0,0.00039452,30]
[313709422,1707600679165,-503.73,0.00039452,30]
[313709423,1707600679175,-206.88971976,0.00039452,30]
[313709424,1707600679185,-500.0,0.00039452,30]
[313709425,1707600679195,-537.26,0.00039452,30]
[313709426,1707600679205,-563.32,0.00039452,30]
[313709427,1707600679215,-500.0,0.00039452,30]
[313709428,1707600679225,-827.96,0.00039452,30]
[313709429,1707600679239,-825.22,0.00039452,30]
[313709430,1707600679249,-500.0,0.00039452,30]
[313709431,1707600679259,-1010.79,0.00039452,30]
[313709432,1707600679269,-651.77,0.00039452,30]
[313709433,1707600679279,-500.0,0.00039452,30]
[313709434,1707600679289,-500.0,0.00039452,30]
[313709435,1707600679298,-589.3,0.00039452,30]
[313709436,1707600679307,-725.96,0.00039452,30]
[313709437,1707600679319,-500.0,0.00039452,30]
[313709438,1707600679328,-500.0,0.00039452,30]
[313709439,1707600679338,-500.0,0.00039452,30]
[313709440,1707600679347,-500.0,0.00039452,30]
[313709441,1707600679357,-500.0,0.00039452,30]
[313709442,1707600679367,-500.0,0.00039452,30]
[313709443,1707600679377,-500.0,0.00039452,30]
[313709444,1707600679387,-500.0,0.00039452,30]
[313709445,1707600679397,-509.21,0.00039452,30]
[313709446,1707600679407,-500.0,0.00039452,30]
[313709447,1707600679417,-682.38,0.00039452,30]
[313709448,1707600679426,-500.0,0.00039452,30]
[313709449,1707600679436,-500.0,0.00039452,30]
[313709450,1707600679445,-500.0,0.00039452,30]
[313709451,1707600679455,-634.59,0.00039452,30]
[313709452,1707600679466,-500.0,0.00039452,30]
[313709453,1707600679476,-520.68,0.00039452,30]
[313709454,1707600679485,-500.0,0.00039452,30]
[313709455,1707600679494,-500.0,0.00039452,30]
[313709456,1707600679504,-500.0,0.00039452,30]
[313709457,1707600679513,-500.0,0.00039452,30]
[313709458,1707600679523,-500.0,0.00039452,30]
[313709459,1707600679532,-500.0,0.00039452,30]
[313709460,1707600679541,-500.0,0.00039452,30]
[313709461,1707600679551,-451.92650044,0.00039452,30]
[313709462,1707600679560,-500.0,0.00039452,30]
[313709463,1707600679570,-500.0,0.00039452,30]
[313709464,1707600679579,-500.0,0.00039452,30]
[313709465,1707600679588,-500.0,0.00039452,30]
[313709466,1707600679598,-500.0,0.00039452,30]
[313709467,1707600679607,-500.0,0.00039452,30]
[313709468,1707600679616,-500.0,0.00039452,30]
[313709469,1707600679625,-500.0,0.00039452,30]
[313709470,1707600679634,-500.0,0.00039452,30]
[313709471,1707600679643,-1039.53,0.00039452,30]
[313709472,1707600679652,-528.45,0.00039452,30]
[313709473,1707600679662,-802.2,0.00039452,30]
[313709474,1707600679671,-678.93,0.00039452,30]
[313709475,1707600679679,-500.0,0.00039452,30]
[313709476,1707600679689,-509.28778334,0.00039452,30]
[313709477,1707600679698,-511.35,0.00039452,30]
[313709478,1707600679707,-500.0,0.00039452,30]
[313709479,1707600679717,-556.28,0.00039452,30]
[313709480,1707600679726,-500.0,0.00039452,30]
[313709481,1707600679735,-500.0,0.00039452,30]
[313709482,1707600679746,-500.0,0.00039452,30]
[313709483,1707600679756,-619.38,0.00039452,30]
[313709484,1707600679765,-500.0,0.00039452,30]
[313709485,1707600679774,-500.0,0.00039452,30]
[313709486,1707600679783,-500.0,0.00039452,30]
[313709487,1707600679792,-500.0,0.00039452,30]
[313709488,1707600679802,-512.53723513,0.00039452,30]
[313709489,1707600679813,-500.0,0.00039452,30]
[313709490,1707600679822,-535.96,0.00039452,30]
[313709491,1707600679832,-520.36,0.00039452,30]
[313709492,1707600679841,-650.62,0.00039452,30]
[313709493,1707600679850,-500.0,0.00039452,30]
[313709494,1707600679860,-500.0,0.00039452,30]
[313709495,1707600679870,-500.0,0.00039452,30]
[313709496,1707600679879,-500.0,0.00039452,30]
[313709497,1707600679889,-500.0,0.00039452,30]
[313709498,1707600679898,-500.0,0.00039452,30]
[313709499,1707600679908,-500.0,0.00039452,30]
[313709500,1707600679917,-500.0,0.00039452,30]
[313709501,1707600679927,-500.0,0.00039452,30]
[313709502,1707600679937,-500.0,0.00039452,30]
[313709503,1707600679946,-500.0,0.00039452,30]
[313709504,1707600679956,-752.52,0.00039452,30]
[313709505,1707600679965,-500.0,0.00039452,30]
[313709506,1707600679974,-249.02,0.00039452,30]
[313709507,1707600679984,-500.0,0.00039452,30]
[313709508,1707600679993,-500.0,0.00039452,30]
[313709509,1707600680003,-740.72,0.00039452,30]
[313709510,1707600680013,-500.0,0.00039452,30]
[313709511,1707600680022,-651.16,0.00039452,30]
[313709512,1707600680033,-252.50309058,0.00039452,30]
[313709513,1707600680042,-835.86,0.00039452,30]
[313709514,1707600680052,-500.0,0.00039452,30]
[313709515,1707600680063,-627.83,0.00039452,30]
[313709516,1707600680073,-519.69,0.00039452,30]
[313709517,1707600680083,-500.0,0.00039452,30]
[313709518,1707600680093,-500.0,0.00039452,30]
[313709519,1707600680103,-646.86,0.00039452,30]
[313709520,1707600680113,-500.0,0.00039452,30]
[313709521,1707600680123,-1073.3,0.00039452,30]
[313709522,1707600680133,-822.77,0.00039452,30]
[313709523,1707600680143,-500.0,0.00039452,30]
[313709524,1707600680152,-150.0,0.00039452,30]
[313709525,1707600680162,-518.97,0.00039452,30]
[313709526,1707600680172,-550.39,0.00039452,30]
[313709527,1707600680181,-231.07603133,0.00039452,30]
[313709528,1707600680191,-579.61,0.00039452,30]
[313709529,1707600680201,-517.92,0.00039452,30]
[313709530,1707600680211,-500.0,0.00039452,30]
[313709531,1707600680221,-704.93,0.00039452,30]
[313709532,1707600680232,-956.96,0.00039452,30]
[313709533,1707600680242,-500.0,0.00039452,30]
[313709534,1707600680252,-500.0,0.00039452,30]
[313709535,1707600680265,-578.55,0.00039452,30]
[313709536,1707600680275,-500.0,0.00039452,2]
[313709537,1707600680285,-856.73,0.00039452,30]
[313709538,1707600680296,-531.13,0.00039452,30]
[313709539,1707600680306,-640.04,0.00039452,30]
[313709540,1707600680318,-776.41,0.00039452,2]
[313709541,1707600680327,-513.26,0.00039452,30]
[313709542,1707600680340,-963.84,0.00039452,30]
[313709543,1707600680352,-518.12,0.00039452,30]
[313709544,1707600680369,-500.0,0.00039452,30]
[313709545,1707600680379,-767.28,0.00039452,30]
[313709546,1707600680388,-554.4,0.00039452,30]
[313709547,1707600680398,-509.23,0.00039452,30]
[313709548,1707600680408,-500.0,0.00039452,30]
[313709549,1707600680417,-500.0,0.00039452,30]
[313709550,1707600680427,-754.28,0.00039452,30]
[313709551,1707600680437,-1007.77,0.00039452,30]
[313709552,1707600680447,-500.0,0.00039452,30]
[313709553,1707600680456,-500.0,0.00039452,30]
[313709554,1707600680466,-500.0,0.00039452,30]
[313709555,1707600680476,-1392.5,0.00039452,30]
[313709556,1707600680485,-696.89,0.00039452,30]
[313709557,1707600680495,-500.0,0.00039452,30]
[313709558,1707600680504,-500.0,0.00039452,30]
[313709559,1707600680514,-1033.01,0.00039452,30]
[313709560,1707600680523,-589.39,0.00039452,30]
[313709561,1707600680533,-1048.7,0.00039452,30]
[313709562,1707600680544,-558.2,0.00039452,30]
[313709563,1707600680560,-727.43,0.00039452,30]
[313709564,1707600680571,-500.0,0.00039452,30]
[313709565,1707600680581,-950.33,0.00039452,30]
[313709566,1707600680590,-500.0,0.00039452,30]
[313709567,1707600680600,-677.42,0.00039452,30]
[313709568,1707600680610,-1083.34,0.00039452,30]
[313709569,1707600680619,-868.45,0.00039452,30]
[313709570,1707600680628,-500.0,0.00039452,30]
[313709571,1707600680638,-1123.28,0.00039452,30]
[313709572,1707600680647,-724.69,0.00039452,30]
[313709573,1707600680656,-500.0,0.00039452,30]
[313709574,1707600680666,-500.0,0.00039452,30]
[313709575,1707600680675,-575.35,0.00039452,30]
[313709576,1707600680685,-1166.32,0.00039452,30]
[313709577,1707600680694,-500.0,0.00039452,30]
[313709578,1707600680703,-207.44213083,0.00039452,30]
[313709579,1707600680712,-1041.2,0.00039452,30]
[313709580,1707600680722,-500.0,0.00039452,30]
[313709581,1707600680731,-500.0,0.00039452,30]
[313709582,1707600680740,-1100.61,0.00039452,30]
[313709583,1707600680749,-629.33,0.00039452,30]
[313709584,1707600680759,-1153.81,0.00039452,30]
[313709585,1707600680768,-534.05,0.00039452,30]
[313709586,1707600680777,-500.0,0.00039452,30]
[313709587,1707600680787,-561.58,0.00039452,30]
[313709588,1707600680796,-500.0,0.00039452,30]
[313709589,1707600680805,-500.0,0.00039452,30]
[313709590,1707600680817,-500.0,0.00039452,30]
[313709591,1707600680827,-500.0,0.00039452,30]
[313709592,1707600680836,-500.0,0.00039452,30]
[313709593,1707600680845,-500.0,0.00039452,30]
[313709594,1707600680855,-570.53,0.00039452,30]
[313709595,1707600680864,-500.0,0.00039452,30]
[313709596,1707600680873,-500.0,0.00039452,30]
[313709597,1707600680882,-500.0,0.00039452,30]
[313709598,1707600680891,-500.0,0.00039452,30]
[313709599,1707600680901,-433.66631873,0.00039452,30]
[313709600,1707600680910,-500.0,0.00039452,30]
[313709601,1707600680919,-500.0,0.00039452,30]
[313709602,1707600680929,-500.0,0.00039452,30]
[313709603,1707600680938,-500.0,0.00039452,30]
[313709604,1707600680948,-500.0,0.00039452,30]
[313709605,1707600680958,-663.95,0.00039452,2]
[313709606,1707600680968,-500.0,0.00039452,30]
[313709607,1707600680977,-500.0,0.00039452,30]
[313709608,1707600680987,-500.0,0.00039452,30]
[313709609,1707600680997,-500.0,0.00039452,30]
[313709610,1707600681007,-516.71,0.00039452,30]
[313709611,1707600681016,-594.35,0.00039452,30]
[313709612,1707600681026,-500.0,0.00039452,30]
[313709613,1707600681035,-384.72,0.00039452,30]
[313709614,1707600681045,-500.0,0.00039452,30]
[313709615,1707600681054,-500.0,0.00039452,30]
[313709616,1707600681064,-688.89,0.00039452,30]
[313709617,1707600681074,-651.25,0.00039452,30]
[313709618,1707600681083,-528.26,0.00039452,30]
[313709619,1707600681093,-1063.32,0.00039452,30]
[313709620,1707600681102,-500.0,0.00039452,30]
[313709621,1707600681111,-500.0,0.00039452,30]
[313709622,1707600681121,-506.34,0.00039452,30]
[313709623,1707600681131,-519.82,0.00039452,30]
[313709624,1707600681142,-500.0,0.00039452,30]
[313709625,1707600681152,-500.0,0.00039452,30]
[313709626,1707600681162,-783.01,0.00039452,30]
[313709627,1707600681174,-500.0,0.00039452,30]
[313709628,1707600681185,-500.0,0.00039452,30]
[313709629,1707600681196,-500.0,0.00039452,30]
[313709630,1707600681206,-500.0,0.00039452,30]
[313709631,1707600681217,-513.79,0.00039452,30]
[313709632,1707600681227,-543.5,0.00039452,30]
[313709633,1707600681238,-500.0,0.00039452,30]
[313709634,1707600681249,-500.0,0.00039452,30]
[313709635,1707600681261,-500.0,0.00039452,30]